[Event "Titled Tuesday Blitz January 10 Late 2023"]
[White "Souza, Gustavo Horokoski De"]
[Black "Gerbelli Neto, Eduardo"]
[WhiteFideId "2146584"]
[BlackFideId "2103281"]
[WhiteElo "1943"]
[BlackElo "2114"]
[Result "1/2-1/2"]
[Round "03"]
[TimeControl "180+2"]
[Date "2023.01.10"]
[WhiteClock "0:00:20"]
[BlackClock "0:01:33"]

1. d4 {[%clk 0:00:00]}  d5 {[%clk 0:00:00]} 2. c4 {[%clk 0:02:55]}  c6 {[%clk 0:02:59]} 3. Nc3 {[%clk 0:02:55]}  Nf6 {[%clk 0:03:00]} 4. Nf3 {[%clk 0:02:55]}  e6 {[%clk 0:02:59]} 5. Bg5 {[%clk 0:02:50]}  dxc4 {[%clk 0:03:00]} 6. a4 {[%clk 0:02:48]}  Bb4 {[%clk 0:03:00]} 7. e3 {[%clk 0:02:45]}  Qa5 {[%clk 0:02:59]} 8. Qc2 {[%clk 0:02:35]}  Ne4 {[%clk 0:02:58]} 9. Qxe4 {[%clk 0:02:28]}  Bxc3+ {[%clk 0:02:55]} 10. Kd1 {[%clk 0:02:12]}  Bxb2 {[%clk 0:02:55]} 11. Ra2 {[%clk 0:02:08]}  c3 {[%clk 0:02:54]} 12. Bd3 {[%clk 0:02:08]}  Nd7 {[%clk 0:02:34]} 13. Ke2 {[%clk 0:02:05]}  Nf6 {[%clk 0:02:21]} 14. Bxf6 {[%clk 0:01:52]}  gxf6 {[%clk 0:02:18]} 15. Rb1 {[%clk 0:01:51]}  Qb4 {[%clk 0:02:19]} 16. Ne1 {[%clk 0:01:43]}  Qb3 {[%clk 0:02:11]} 17. Raa1 {[%clk 0:01:34]}  Qd5 {[%clk 0:02:05]} 18. Qxd5 {[%clk 0:01:26]}  cxd5 {[%clk 0:02:06]} 19. Bb5+ {[%clk 0:01:14]}  Bd7 {[%clk 0:02:05]} 20. Bxd7+ {[%clk 0:01:12]}  Kxd7 {[%clk 0:02:05]} 21. Ra2 {[%clk 0:01:11]}  Rhc8 {[%clk 0:02:06]} 22. Kd1 {[%clk 0:00:46]}  Rab8 {[%clk 0:02:04]} 23. Kc2 {[%clk 0:00:45]}  b5 {[%clk 0:01:52]} 24. axb5 {[%clk 0:00:44]}  Rxb5 {[%clk 0:01:52]} 25. Rxa7+ {[%clk 0:00:43]}  Rc7 {[%clk 0:01:52]} 26. Rxc7+ {[%clk 0:00:43]}  Kxc7 {[%clk 0:01:52]} 27. Nd3 {[%clk 0:00:42]}  Kd6 {[%clk 0:01:53]} 28. Nxb2 {[%clk 0:00:42]}  cxb2 {[%clk 0:01:43]} 29. Rxb2 {[%clk 0:00:41]}  Rxb2+ {[%clk 0:01:44]} 30. Kxb2 {[%clk 0:00:41]}  e5 {[%clk 0:01:41]} 31. Kc3 {[%clk 0:00:42]}  e4 {[%clk 0:01:41]} 32. f3 {[%clk 0:00:40]}  f5 {[%clk 0:01:41]} 33. Kb4 {[%clk 0:00:37]}  Kc6 {[%clk 0:01:41]} 34. h3 {[%clk 0:00:36]}  h5 {[%clk 0:01:41]} 35. f4 {[%clk 0:00:33]}  h4 {[%clk 0:01:39]} 36. Ka4 {[%clk 0:00:18]}  Kb6 {[%clk 0:01:34]} 37. Kb4 {[%clk 0:00:19]}  Kc6 {[%clk 0:01:34]} 38. Ka4 {[%clk 0:00:19]}  Kb6 {[%clk 0:01:32]} 39. Kb4 {[%clk 0:00:20]}  Kc6 {[%clk 0:01:33]} 1/2-1/2


[Site "https://www.chess.com"]

[Event "Titled Tuesday Blitz January 10 Late 2023"]
[White "Abdyzhaparov, Aidar"]
[Black "Marcolino, Daniel Mattos"]
[WhiteFideId "13800361"]
[BlackFideId "2106841"]
[WhiteElo "1978"]
[BlackElo "2006"]
[Result "0-1"]
[Round "03"]
[TimeControl "180+2"]
[Date "2023.01.10"]
[WhiteClock "0:00:11"]
[BlackClock "0:00:55"]

1. Nf3 {[%clk 0:00:00]}  d5 {[%clk 0:00:00]} 2. c4 {[%clk 0:02:57]}  e6 {[%clk 0:02:59]} 3. g3 {[%clk 0:02:57]}  Nf6 {[%clk 0:02:58]} 4. Bg2 {[%clk 0:02:57]}  Be7 {[%clk 0:02:58]} 5. d4 {[%clk 0:02:58]}  O-O {[%clk 0:02:58]} 6. Qc2 {[%clk 0:02:58]}  a6 {[%clk 0:02:57]} 7. Nbd2 {[%clk 0:02:58]}  dxc4 {[%clk 0:02:52]} 8. Nxc4 {[%clk 0:02:57]}  b5 {[%clk 0:02:51]} 9. Na5 {[%clk 0:02:58]}  c5 {[%clk 0:02:51]} 10. Bd2 {[%clk 0:02:58]}  cxd4 {[%clk 0:02:40]} 11. Ne5 {[%clk 0:02:58]}  Nd5 {[%clk 0:02:28]} 12. Nac6 {[%clk 0:02:57]}  Nxc6 {[%clk 0:02:29]} 13. Nxc6 {[%clk 0:02:38]}  Qd7 {[%clk 0:02:18]} 14. Nxe7+ {[%clk 0:02:39]}  Qxe7 {[%clk 0:02:18]} 15. a3 {[%clk 0:02:24]}  Bb7 {[%clk 0:02:19]} 16. O-O {[%clk 0:02:23]}  Rac8 {[%clk 0:02:14]} 17. Qd3 {[%clk 0:02:23]}  e5 {[%clk 0:02:14]} 18. Bxd5 {[%clk 0:02:21]}  Bxd5 {[%clk 0:02:12]} 19. Bb4 {[%clk 0:02:18]}  Qe6 {[%clk 0:02:11]} 20. Bxf8 {[%clk 0:02:19]}  Kxf8 {[%clk 0:02:07]} 21. Rac1 {[%clk 0:02:20]}  Bc4 {[%clk 0:02:06]} 22. Qe4 {[%clk 0:02:20]}  f5 {[%clk 0:02:06]} 23. Qh4 {[%clk 0:02:15]}  Bxe2 {[%clk 0:02:00]} 24. Rxc8+ {[%clk 0:02:09]}  Qxc8 {[%clk 0:01:44]} 25. Re1 {[%clk 0:02:02]}  d3 {[%clk 0:01:45]} 26. Qb4+ {[%clk 0:01:56]}  Kg8 {[%clk 0:01:40]} 27. Qd2 {[%clk 0:01:55]}  Qc2 {[%clk 0:01:32]} 28. Qxc2 {[%clk 0:01:51]}  dxc2 {[%clk 0:01:24]} 29. Rc1 {[%clk 0:00:33]}  Bd1 {[%clk 0:01:22]} 30. f4 {[%clk 0:00:34]}  e4 {[%clk 0:01:14]} 31. Kf2 {[%clk 0:00:33]}  Kf7 {[%clk 0:00:59]} 32. Ke3 {[%clk 0:00:32]}  Ke6 {[%clk 0:01:00]} 33. Kd2 {[%clk 0:00:32]}  Kd5 {[%clk 0:01:01]} 34. Ke3 {[%clk 0:00:27]}  Kc4 {[%clk 0:01:00]} 35. g4 {[%clk 0:00:16]}  g6 {[%clk 0:00:58]} 36. gxf5 {[%clk 0:00:12]}  gxf5 {[%clk 0:00:56]} 37. h4 {[%clk 0:00:11]}  Kb3 {[%clk 0:00:56]} 38. Kd2 {[%clk 0:00:11]}  Kxb2 {[%clk 0:00:55]} 0-1


[Site "https://www.chess.com"]

[Event "Titled Tuesday Blitz January 10 Late 2023"]
[White "Kovacs, Klara"]
[Black "Kalaiyalahan, Akshaya"]
[WhiteFideId "733210"]
[BlackFideId "422894"]
[WhiteElo "2121"]
[BlackElo "2155"]
[Result "1-0"]
[Round "03"]
[TimeControl "180+2"]
[Date "2023.01.10"]
[WhiteClock "0:00:51"]
[BlackClock "0:00:02"]

1. e4 {[%clk 0:00:00]}  d5 {[%clk 0:00:00]} 2. Nf3 {[%clk 0:03:00]}  dxe4 {[%clk 0:02:49]} 3. Ng5 {[%clk 0:03:00]}  e5 {[%clk 0:02:47]} 4. Nxe4 {[%clk 0:02:58]}  f5 {[%clk 0:02:47]} 5. Ng3 {[%clk 0:02:57]}  Nf6 {[%clk 0:02:47]} 6. Nc3 {[%clk 0:02:56]}  Bd6 {[%clk 0:02:45]} 7. Bc4 {[%clk 0:02:55]}  Qe7 {[%clk 0:02:45]} 8. O-O {[%clk 0:02:55]}  Be6 {[%clk 0:02:41]} 9. Bxe6 {[%clk 0:02:52]}  Qxe6 {[%clk 0:02:41]} 10. d4 {[%clk 0:02:50]}  e4 {[%clk 0:02:41]} 11. d5 {[%clk 0:02:50]}  Qd7 {[%clk 0:02:38]} 12. Bg5 {[%clk 0:02:44]}  O-O {[%clk 0:02:33]} 13. Qd4 {[%clk 0:02:41]}  h6 {[%clk 0:02:32]} 14. Bxf6 {[%clk 0:02:37]}  Rxf6 {[%clk 0:01:55]} 15. Nh5 {[%clk 0:02:35]}  Rg6 {[%clk 0:01:55]} 16. f3 {[%clk 0:02:35]}  Na6 {[%clk 0:01:55]} 17. Kh1 {[%clk 0:02:32]}  exf3 {[%clk 0:01:34]} 18. Rxf3 {[%clk 0:02:29]}  Re8 {[%clk 0:01:29]} 19. Raf1 {[%clk 0:02:28]}  Nc5 {[%clk 0:01:29]} 20. b4 {[%clk 0:02:25]}  Ne4 {[%clk 0:01:23]} 21. Rxf5 {[%clk 0:02:02]}  Nxc3 {[%clk 0:01:20]} 22. Qxc3 {[%clk 0:02:01]}  Rg5 {[%clk 0:00:52]} 23. Rxg5 {[%clk 0:02:02]}  hxg5 {[%clk 0:00:36]} 24. a3 {[%clk 0:02:00]}  Be5 {[%clk 0:00:36]} 25. Qd3 {[%clk 0:01:59]}  Qg4 {[%clk 0:00:32]} 26. Qg6 {[%clk 0:01:57]}  Qe2 {[%clk 0:00:31]} 27. Qf7+ {[%clk 0:01:52]}  Kh7 {[%clk 0:00:24]} 28. h3 {[%clk 0:01:28]}  Bd4 {[%clk 0:00:22]} 29. Qf5+ {[%clk 0:01:15]}  Kh6 {[%clk 0:00:05]} 30. Ng3 {[%clk 0:01:00]}  Qe5 {[%clk 0:00:05]} 31. Qg4 {[%clk 0:00:56]}  Kh7 {[%clk 0:00:03]} 32. Qh5+ {[%clk 0:00:54]}  Kg8 {[%clk 0:00:02]} 33. Nf5 {[%clk 0:00:53]}  Qf6 {[%clk 0:00:02]} 34. Qxe8+ {[%clk 0:00:51]} 1-0


[Site "https://www.chess.com"]

[Event "Titled Tuesday Blitz January 10 Late 2023"]
[White "Lutz, Igor Oscar"]
[Black "Lacasa Diaz, Jose Antonio"]
[WhiteFideId "2110806"]
[BlackFideId "2203375"]
[WhiteElo "1969"]
[BlackElo "2359"]
[Result "0-1"]
[Round "03"]
[TimeControl "180+2"]
[Date "2023.01.10"]
[WhiteClock "0:00:05"]
[BlackClock "0:00:14"]

1. d4 {[%clk 0:00:00]}  d5 {[%clk 0:00:00]} 2. c4 {[%clk 0:03:00]}  e6 {[%clk 0:02:58]} 3. Nf3 {[%clk 0:02:58]}  c5 {[%clk 0:02:54]} 4. cxd5 {[%clk 0:02:58]}  exd5 {[%clk 0:02:53]} 5. g3 {[%clk 0:02:57]}  Nc6 {[%clk 0:02:52]} 6. Bg2 {[%clk 0:02:53]}  Nf6 {[%clk 0:02:52]} 7. O-O {[%clk 0:02:53]}  Be7 {[%clk 0:02:52]} 8. dxc5 {[%clk 0:02:52]}  O-O {[%clk 0:02:52]} 9. a3 {[%clk 0:02:52]}  Bxc5 {[%clk 0:02:53]} 10. b4 {[%clk 0:02:49]}  Bb6 {[%clk 0:02:52]} 11. Bb2 {[%clk 0:02:48]}  Ne4 {[%clk 0:02:52]} 12. e3 {[%clk 0:02:48]}  Bg4 {[%clk 0:02:52]} 13. Nbd2 {[%clk 0:02:37]}  Qe7 {[%clk 0:02:41]} 14. Qb3 {[%clk 0:02:31]}  Rad8 {[%clk 0:02:34]} 15. Rac1 {[%clk 0:02:18]}  Rfe8 {[%clk 0:02:27]} 16. h3 {[%clk 0:01:53]}  Bh5 {[%clk 0:02:24]} 17. g4 {[%clk 0:01:30]}  Bg6 {[%clk 0:02:15]} 18. Rfd1 {[%clk 0:01:31]}  h5 {[%clk 0:02:15]} 19. Nxe4 {[%clk 0:01:21]}  Bxe4 {[%clk 0:01:58]} 20. Nd4 {[%clk 0:01:14]}  Nxd4 {[%clk 0:01:51]} 21. Bxd4 {[%clk 0:00:53]}  Bxg2 {[%clk 0:01:40]} 22. Kxg2 {[%clk 0:00:54]}  hxg4 {[%clk 0:01:28]} 23. hxg4 {[%clk 0:00:52]}  Qe4+ {[%clk 0:01:28]} 24. Kg3 {[%clk 0:00:52]}  Qg6 {[%clk 0:01:23]} 25. Bxb6 {[%clk 0:00:46]}  axb6 {[%clk 0:01:01]} 26. Rxd5 {[%clk 0:00:41]}  Rd6 {[%clk 0:01:02]} 27. Rcd1 {[%clk 0:00:36]}  Rde6 {[%clk 0:00:47]} 28. Rd8 {[%clk 0:00:23]}  Rxd8 {[%clk 0:00:46]} 29. Rxd8+ {[%clk 0:00:20]}  Kh7 {[%clk 0:00:31]} 30. Qc4 {[%clk 0:00:20]}  Re4 {[%clk 0:00:32]} 31. Qc8 {[%clk 0:00:19]}  Qf6 {[%clk 0:00:28]} 32. Rh8+ {[%clk 0:00:13]}  Kg6 {[%clk 0:00:18]} 33. Qf5+ {[%clk 0:00:12]}  Qxf5 {[%clk 0:00:18]} 34. gxf5+ {[%clk 0:00:07]}  Kxf5 {[%clk 0:00:18]} 35. Rb8 {[%clk 0:00:08]}  Re7 {[%clk 0:00:19]} 36. Rg8 {[%clk 0:00:07]}  Kf6 {[%clk 0:00:18]} 37. Kf4 {[%clk 0:00:07]}  Rc7 {[%clk 0:00:18]} 38. a4 {[%clk 0:00:07]}  Rc4+ {[%clk 0:00:18]} 39. e4 {[%clk 0:00:06]}  Rxb4 {[%clk 0:00:17]} 40. Ra8 {[%clk 0:00:06]}  g6 {[%clk 0:00:18]} 41. Rb8 {[%clk 0:00:05]}  Rxa4 {[%clk 0:00:18]} 42. Rxb7 {[%clk 0:00:05]}  Rb4 {[%clk 0:00:16]} 43. f3 {[%clk 0:00:06]}  Rb1 {[%clk 0:00:16]} 44. e5+ {[%clk 0:00:06]}  Ke6 {[%clk 0:00:15]} 45. Rb8 {[%clk 0:00:06]}  Rb4+ {[%clk 0:00:15]} 46. Kg5 {[%clk 0:00:04]}  Kxe5 {[%clk 0:00:15]} 47. Re8+ {[%clk 0:00:03]}  Kd6 {[%clk 0:00:15]} 48. Rd8+ {[%clk 0:00:04]}  Ke7 {[%clk 0:00:15]} 49. Rb8 {[%clk 0:00:04]}  Rb5+ {[%clk 0:00:15]} 50. Kg4 {[%clk 0:00:04]}  Kf6 {[%clk 0:00:15]} 51. Rb7 {[%clk 0:00:04]}  Rb4+ {[%clk 0:00:14]} 52. f4 {[%clk 0:00:05]}  g5 {[%clk 0:00:14]} 53. Rb8 {[%clk 0:00:05]}  Rxf4+ {[%clk 0:00:14]} 54. Kg3 {[%clk 0:00:05]}  Rb4 {[%clk 0:00:14]} 0-1


[Site "https://www.chess.com"]

[Event "Titled Tuesday Blitz January 10 Late 2023"]
[White "Itkis, Boris"]
[Black "Oliveira, Tiago Batista"]
[WhiteFideId "1209167"]
[BlackFideId "2108291"]
[WhiteElo "2329"]
[BlackElo "1991"]
[Result "1-0"]
[Round "03"]
[TimeControl "180+2"]
[Date "2023.01.10"]
[WhiteClock "0:00:52"]
[BlackClock "0:00:02"]

1. c4 {[%clk 0:00:00]}  Nf6 {[%clk 0:00:00]} 2. Nf3 {[%clk 0:03:00]}  g6 {[%clk 0:02:57]} 3. b4 {[%clk 0:03:00]}  Bg7 {[%clk 0:02:53]} 4. Bb2 {[%clk 0:02:58]}  O-O {[%clk 0:02:53]} 5. g3 {[%clk 0:02:59]}  c6 {[%clk 0:02:51]} 6. Bg2 {[%clk 0:02:59]}  d5 {[%clk 0:02:33]} 7. Na3 {[%clk 0:02:57]}  Nbd7 {[%clk 0:02:33]} 8. O-O {[%clk 0:02:57]}  Re8 {[%clk 0:02:17]} 9. Rc1 {[%clk 0:02:56]}  e5 {[%clk 0:02:14]} 10. cxd5 {[%clk 0:02:43]}  cxd5 {[%clk 0:02:12]} 11. Nb5 {[%clk 0:02:43]}  Re7 {[%clk 0:02:12]} 12. d4 {[%clk 0:02:43]}  e4 {[%clk 0:01:58]} 13. Ne5 {[%clk 0:02:39]}  Nxe5 {[%clk 0:01:54]} 14. dxe5 {[%clk 0:02:40]}  Ne8 {[%clk 0:01:49]} 15. Bxe4 {[%clk 0:02:40]}  Bd7 {[%clk 0:01:48]} 16. Qxd5 {[%clk 0:02:26]}  Qb6 {[%clk 0:01:21]} 17. a4 {[%clk 0:02:21]}  Bc6 {[%clk 0:01:07]} 18. Qd3 {[%clk 0:02:08]}  Rd8 {[%clk 0:01:03]} 19. Bd4 {[%clk 0:02:00]}  Bxb5 {[%clk 0:01:00]} 20. Bxb6 {[%clk 0:01:59]}  Rxd3 {[%clk 0:00:50]} 21. exd3 {[%clk 0:01:53]}  axb6 {[%clk 0:00:50]} 22. axb5 {[%clk 0:01:51]}  Bxe5 {[%clk 0:00:25]} 23. Rc8 {[%clk 0:01:51]}  Kg7 {[%clk 0:00:24]} 24. Rfc1 {[%clk 0:01:47]}  Nf6 {[%clk 0:00:23]} 25. Bf3 {[%clk 0:01:40]}  Bd4 {[%clk 0:00:22]} 26. R8c7 {[%clk 0:01:36]}  Re5 {[%clk 0:00:21]} 27. Rxb7 {[%clk 0:01:32]}  Rf5 {[%clk 0:00:16]} 28. Kg2 {[%clk 0:01:28]}  g5 {[%clk 0:00:06]} 29. Rcc7 {[%clk 0:01:26]}  Ng8 {[%clk 0:00:04]} 30. g4 {[%clk 0:01:17]}  Rf4 {[%clk 0:00:05]} 31. Bd5 {[%clk 0:01:15]}  Rxf2+ {[%clk 0:00:03]} 32. Kg3 {[%clk 0:01:04]}  Nh6 {[%clk 0:00:02]} 33. Rd7 {[%clk 0:01:04]}  Rd2 {[%clk 0:00:03]} 34. Be4 {[%clk 0:00:56]}  Bf2+ {[%clk 0:00:02]} 35. Kf3 {[%clk 0:00:52]} 1-0


[Site "https://www.chess.com"]

[Event "Titled Tuesday Blitz January 10 Late 2023"]
[White "Sevian, Samuel"]
[Black "Makarian, Rudik"]
[WhiteFideId "2040506"]
[BlackFideId "44105681"]
[WhiteElo "2684"]
[BlackElo "2545"]
[Result "1-0"]
[Round "04"]
[TimeControl "180+2"]
[Date "2023.01.10"]
[WhiteClock "0:00:45"]
[BlackClock "0:00:19"]

1. d4 {[%clk 0:00:00]}  Nf6 {[%clk 0:00:00]} 2. c4 {[%clk 0:02:47]}  e6 {[%clk 0:02:59]} 3. Nf3 {[%clk 0:02:47]}  d5 {[%clk 0:02:59]} 4. g3 {[%clk 0:02:48]}  Bb4+ {[%clk 0:02:59]} 5. Bd2 {[%clk 0:02:48]}  Be7 {[%clk 0:02:59]} 6. Bg2 {[%clk 0:02:48]}  O-O {[%clk 0:03:00]} 7. Qc2 {[%clk 0:02:48]}  Nbd7 {[%clk 0:03:00]} 8. Bc3 {[%clk 0:02:49]}  c6 {[%clk 0:03:00]} 9. Nbd2 {[%clk 0:02:48]}  b5 {[%clk 0:02:59]} 10. b3 {[%clk 0:02:48]}  a5 {[%clk 0:02:59]} 11. O-O {[%clk 0:02:48]}  Ba6 {[%clk 0:02:59]} 12. Rfc1 {[%clk 0:02:33]}  Ba3 {[%clk 0:02:58]} 13. Bb2 {[%clk 0:02:26]}  Bxb2 {[%clk 0:02:54]} 14. Qxb2 {[%clk 0:02:25]}  bxc4 {[%clk 0:02:46]} 15. bxc4 {[%clk 0:02:26]}  Nb6 {[%clk 0:02:46]} 16. Ne5 {[%clk 0:02:26]}  Rc8 {[%clk 0:02:47]} 17. Rab1 {[%clk 0:02:25]}  Nbd7 {[%clk 0:02:38]} 18. cxd5 {[%clk 0:02:11]}  Nxe5 {[%clk 0:02:29]} 19. dxe5 {[%clk 0:02:12]}  Nxd5 {[%clk 0:02:20]} 20. Ne4 {[%clk 0:02:13]}  Rb8 {[%clk 0:02:21]} 21. Qxb8 {[%clk 0:02:13]}  Qxb8 {[%clk 0:02:14]} 22. Rxb8 {[%clk 0:01:55]}  Rxb8 {[%clk 0:02:15]} 23. Bf3 {[%clk 0:01:56]}  Rb6 {[%clk 0:02:15]} 24. Rc5 {[%clk 0:01:57]}  Rb5 {[%clk 0:02:05]} 25. Rxc6 {[%clk 0:01:53]}  Bb7 {[%clk 0:00:59]} 26. Rc1 {[%clk 0:01:49]}  Kf8 {[%clk 0:00:59]} 27. Nd6 {[%clk 0:01:43]}  Rb2 {[%clk 0:00:51]} 28. Bxd5 {[%clk 0:01:30]}  Bxd5 {[%clk 0:00:51]} 29. e4 {[%clk 0:01:23]}  Bxa2 {[%clk 0:00:49]} 30. Rc8+ {[%clk 0:01:19]}  Ke7 {[%clk 0:00:49]} 31. Rc7+ {[%clk 0:01:14]}  Kd8 {[%clk 0:00:49]} 32. Ra7 {[%clk 0:01:15]}  f6 {[%clk 0:00:48]} 33. Rxg7 {[%clk 0:01:15]}  fxe5 {[%clk 0:00:40]} 34. Ra7 {[%clk 0:00:58]}  Rb6 {[%clk 0:00:34]} 35. Nf7+ {[%clk 0:00:58]}  Ke8 {[%clk 0:00:34]} 36. Nxe5 {[%clk 0:00:50]}  Bb1 {[%clk 0:00:32]} 37. f3 {[%clk 0:00:50]}  Rb5 {[%clk 0:00:21]} 38. Nc4 {[%clk 0:00:48]}  Rc5 {[%clk 0:00:21]} 39. Nxa5 {[%clk 0:00:49]}  Rc2 {[%clk 0:00:20]} 40. Rxh7 {[%clk 0:00:48]}  Ba2 {[%clk 0:00:18]} 41. Nb7 {[%clk 0:00:45]}  Kf8 {[%clk 0:00:18]} 42. Nd6 {[%clk 0:00:45]}  Kg8 {[%clk 0:00:19]} 43. Ra7 {[%clk 0:00:45]}  Kf8 {[%clk 0:00:19]} 44. Nf7 {[%clk 0:00:45]}  Bc4 {[%clk 0:00:19]} 45. Ne5 {[%clk 0:00:45]}  Be2 {[%clk 0:00:19]} 46. h4 {[%clk 0:00:45]}  Rc5 {[%clk 0:00:19]} 47. Nd7+ {[%clk 0:00:45]} 1-0


[Site "https://www.chess.com"]

[Event "Titled Tuesday Blitz January 10 Late 2023"]
[White "Indjic, Aleksandar"]
[Black "Theodorou, Nikolas"]
[WhiteFideId "911925"]
[BlackFideId "4262875"]
[WhiteElo "2618"]
[BlackElo "2591"]
[Result "0-1"]
[Round "04"]
[TimeControl "180+2"]
[Date "2023.01.10"]
[WhiteClock "0:00:02"]
[BlackClock "0:00:10"]

1. d4 {[%clk 0:00:00]}  Nf6 {[%clk 0:00:00]} 2. Nf3 {[%clk 0:03:00]}  e6 {[%clk 0:02:59]} 3. Bg5 {[%clk 0:03:00]}  h6 {[%clk 0:02:58]} 4. Bh4 {[%clk 0:03:00]}  Be7 {[%clk 0:02:49]} 5. Nbd2 {[%clk 0:02:59]}  d6 {[%clk 0:02:48]} 6. c3 {[%clk 0:02:59]}  O-O {[%clk 0:02:48]} 7. e4 {[%clk 0:02:58]}  Nbd7 {[%clk 0:02:47]} 8. Bd3 {[%clk 0:02:55]}  e5 {[%clk 0:02:42]} 9. Bg3 {[%clk 0:02:54]}  Nh5 {[%clk 0:02:39]} 10. Qc2 {[%clk 0:02:51]}  c6 {[%clk 0:02:31]} 11. Nc4 {[%clk 0:02:50]}  Nxg3 {[%clk 0:02:25]} 12. hxg3 {[%clk 0:02:47]}  exd4 {[%clk 0:02:20]} 13. cxd4 {[%clk 0:02:48]}  d5 {[%clk 0:02:21]} 14. exd5 {[%clk 0:02:47]}  Bb4+ {[%clk 0:02:21]} 15. Kf1 {[%clk 0:02:45]}  cxd5 {[%clk 0:02:22]} 16. Nce5 {[%clk 0:02:43]}  Nf6 {[%clk 0:02:22]} 17. Rh4 {[%clk 0:02:40]}  Be6 {[%clk 0:02:19]} 18. a3 {[%clk 0:02:37]}  Rc8 {[%clk 0:02:09]} 19. Qe2 {[%clk 0:02:34]}  Be7 {[%clk 0:02:09]} 20. Kg1 {[%clk 0:02:33]}  Re8 {[%clk 0:02:09]} 21. Re1 {[%clk 0:02:21]}  Qb6 {[%clk 0:02:05]} 22. Bb1 {[%clk 0:02:19]}  Qb3 {[%clk 0:02:04]} 23. Kh2 {[%clk 0:02:06]}  Bd6 {[%clk 0:01:57]} 24. Kg1 {[%clk 0:00:58]}  Rc7 {[%clk 0:01:43]} 25. Rf4 {[%clk 0:00:56]}  Rec8 {[%clk 0:01:38]} 26. Qd2 {[%clk 0:00:54]}  Ne4 {[%clk 0:01:34]} 27. Bxe4 {[%clk 0:00:26]}  dxe4 {[%clk 0:01:13]} 28. Rfxe4 {[%clk 0:00:26]}  Rc2 {[%clk 0:01:14]} 29. Qa5 {[%clk 0:00:27]}  Qxb2 {[%clk 0:01:11]} 30. Nd3 {[%clk 0:00:26]}  Qc3 {[%clk 0:01:08]} 31. Qxc3 {[%clk 0:00:22]}  R2xc3 {[%clk 0:01:08]} 32. Nf4 {[%clk 0:00:21]}  Bxf4 {[%clk 0:01:06]} 33. Rxf4 {[%clk 0:00:21]}  Rxa3 {[%clk 0:01:05]} 34. Re5 {[%clk 0:00:20]}  Rd3 {[%clk 0:01:05]} 35. Ra5 {[%clk 0:00:20]}  a6 {[%clk 0:01:00]} 36. Re4 {[%clk 0:00:18]}  Rd1+ {[%clk 0:01:01]} 37. Kh2 {[%clk 0:00:18]}  Rd8 {[%clk 0:01:00]} 38. g4 {[%clk 0:00:17]}  g5 {[%clk 0:00:55]} 39. Kg3 {[%clk 0:00:17]}  Rd3 {[%clk 0:00:37]} 40. Ra1 {[%clk 0:00:17]}  Kg7 {[%clk 0:00:36]} 41. Rb1 {[%clk 0:00:14]}  b5 {[%clk 0:00:33]} 42. Ra1 {[%clk 0:00:13]}  Rd6 {[%clk 0:00:27]} 43. Kh2 {[%clk 0:00:13]}  Bd5 {[%clk 0:00:28]} 44. Re3 {[%clk 0:00:09]}  Rxe3 {[%clk 0:00:27]} 45. fxe3 {[%clk 0:00:10]}  b4 {[%clk 0:00:24]} 46. Ne5 {[%clk 0:00:11]}  b3 {[%clk 0:00:25]} 47. Nd3 {[%clk 0:00:11]}  Rb6 {[%clk 0:00:24]} 48. Nb2 {[%clk 0:00:11]}  Rc6 {[%clk 0:00:24]} 49. Ra5 {[%clk 0:00:11]}  Be4 {[%clk 0:00:20]} 50. Na4 {[%clk 0:00:11]}  Rc2 {[%clk 0:00:18]} 51. Rxa6 {[%clk 0:00:09]}  Rxg2+ {[%clk 0:00:16]} 52. Kh3 {[%clk 0:00:09]}  Ra2 {[%clk 0:00:16]} 53. Rb6 {[%clk 0:00:09]}  Rxa4 {[%clk 0:00:17]} 54. Rxb3 {[%clk 0:00:07]}  Ra7 {[%clk 0:00:17]} 55. Kg3 {[%clk 0:00:08]}  Re7 {[%clk 0:00:15]} 56. Rc3 {[%clk 0:00:08]}  Bd5 {[%clk 0:00:15]} 57. Kf2 {[%clk 0:00:09]}  Rb7 {[%clk 0:00:15]} 58. Rc5 {[%clk 0:00:09]}  Be6 {[%clk 0:00:15]} 59. Kf3 {[%clk 0:00:10]}  Rd7 {[%clk 0:00:15]} 60. Rb5 {[%clk 0:00:09]}  Rd5 {[%clk 0:00:14]} 61. Rb6 {[%clk 0:00:08]}  Ra5 {[%clk 0:00:13]} 62. Kg3 {[%clk 0:00:08]}  Ra1 {[%clk 0:00:13]} 63. Kf3 {[%clk 0:00:06]}  Rf1+ {[%clk 0:00:13]} 64. Ke2 {[%clk 0:00:06]}  Rg1 {[%clk 0:00:13]} 65. e4 {[%clk 0:00:06]}  Bxg4+ {[%clk 0:00:13]} 66. Ke3 {[%clk 0:00:07]}  Re1+ {[%clk 0:00:13]} 67. Kd3 {[%clk 0:00:08]}  Rd1+ {[%clk 0:00:13]} 68. Ke3 {[%clk 0:00:07]}  h5 {[%clk 0:00:13]} 69. Rb5 {[%clk 0:00:07]}  f6 {[%clk 0:00:13]} 70. Rb7+ {[%clk 0:00:06]}  Kg6 {[%clk 0:00:14]} 71. Rb6 {[%clk 0:00:06]}  Re1+ {[%clk 0:00:14]} 72. Kd3 {[%clk 0:00:06]}  Kf7 {[%clk 0:00:14]} 73. Rb7+ {[%clk 0:00:06]}  Kf8 {[%clk 0:00:13]} 74. Rb6 {[%clk 0:00:06]}  Rf1 {[%clk 0:00:13]} 75. d5 {[%clk 0:00:05]}  h4 {[%clk 0:00:13]} 76. Rb8+ {[%clk 0:00:04]}  Kg7 {[%clk 0:00:13]} 77. Ke3 {[%clk 0:00:04]}  h3 {[%clk 0:00:13]} 78. Rb2 {[%clk 0:00:03]}  Re1+ {[%clk 0:00:13]} 79. Kd4 {[%clk 0:00:01]}  Re2 {[%clk 0:00:13]} 80. Rb1 {[%clk 0:00:01]}  h2 {[%clk 0:00:14]} 81. Kd3 {[%clk 0:00:02]}  Bf3 {[%clk 0:00:14]} 82. d6 {[%clk 0:00:01]}  Bxe4+ {[%clk 0:00:11]} 83. Kxe2 {[%clk 0:00:02]}  Bxb1 {[%clk 0:00:08]} 84. d7 {[%clk 0:00:02]}  h1=Q {[%clk 0:00:09]} 85. d8=Q {[%clk 0:00:02]}  Qe4+ {[%clk 0:00:09]} 86. Kf2 {[%clk 0:00:03]}  Qf4+ {[%clk 0:00:10]} 87. Ke1 {[%clk 0:00:03]}  Qe3+ {[%clk 0:00:10]} 88. Kf1 {[%clk 0:00:03]}  Bd3+ {[%clk 0:00:09]} 89. Kg2 {[%clk 0:00:02]}  Be4+ {[%clk 0:00:10]} 90. Kh2 {[%clk 0:00:02]}  Qf2+ {[%clk 0:00:10]} 0-1


[Site "https://www.chess.com"]